Cogmind - Beta 16 @@@ ROGUE MODE // 2026.01.13 @ 16:10:55 Player: Maulwurf Result: Destroyed by P-60 Hacker with Shock Rifle Performance ------------- Evolutions (3) 1500 Regions Visited (10) 2000 Robots Destroyed (77) 385 Value Destroyed (2392) 2392 Prototype IDs (25) 500 Alien Tech Used (0) 0 Bonus (274) 274 TOTAL SCORE: 7051 Bonus ------- Aligned with FarCom 300 Friendly Fire -26 Cogmind --------- Core Integrity 0/700 Matter 116/300 Energy 100/100 System Corruption 6% Temperature Cool (0) Movement Core (50) Location -7/Factory Parts ------- > --- POWER (1) -------- (None) > --- PROPULSION (5) --- (None) > --- UTILITY (5) ------ (None) > --- WEAPON (2) ------- (None) > --- INVENTORY (5) ---- Carbon-fiber Leg Faulty Cooled Airjet AWS/Thermal Peak State ------------ > --- POWER ------------ Antimatter Reactor > --- PROPULSION ------- Carbon-fiber Leg Carbon-fiber Leg Carbon-fiber Leg Carbon-fiber Leg Myomer Leg > --- UTILITY ---------- Improved Heat Sink High-capacity Storage Unit Improved Signal Interpreter Improved Terrain Scanner Improved Terrain Scan Processor > --- WEAPON ----------- AWS/Thermal > --- INVENTORY -------- Improved Deuterium Engine Improved Deuterium Engine Improved Deuterium Engine Carbon-fiber Leg Carbon-fiber Leg Carbon-fiber Leg Carbon-fiber Leg Medium Matter Pod Transmission Jammer ECM Suite Hardened Medium Armor Plating Improved Field Recycling Unit Flak Gun Flak Gun Flak Gun Flak Gun Flak Gun Slug Cannon Mini Grenade Launcher Mining Laser [Rating: 61] Favorites ----------- Power Improved Ion Engine Engine Improved Ion Engine Power Core Micro Nuclear Core Reactor Antimatter Reactor Propulsion Carbon-fiber Leg Leg Carbon-fiber Leg Wheel Wheel Hover Unit Cooled Airjet Utility High-capacity Storage Unit Device Improved Terrain Scanner Storage High-capacity Storage Unit Processor Improved Terrain Scan Processor Protection Improved Medium Armor Plating Weapon AWS/Thermal Energy Gun AWS/Thermal Energy Cannon Beam Cannon Ballistic Gun Flak Gun Ballistic Cannon Slug Cannon Launcher Mini Grenade Launcher Special Weapon Mining Laser Special Melee Weapon Datajack Build | -11 -10 -10 -9 -9 -9 -8 -8 -7 -7 -7 ------- Run | Yrd Mat Min Mat Min Exi Min Mat Fac Was Fac Slots Evolved 6 | . . . 2 . . . 2 2 . . Power . | . . . . . . . . . . . Propulsion 3 | . . . 1 . . . 1 1 . . Utility 3 | . . . 1 . . . 1 1 . . Weapon . | . . . . . . . . . . . Parts Attached 71 | 7 6 . 9 1 4 2 11 12 3 16 Power 12 | 1 . . 1 . . 1 2 2 2 3 Engine 8 | 1 . . 1 . . 1 1 1 1 2 Core 3 | . . . . . . . 1 1 . 1 Reactor 1 | . . . . . . . . . 1 . Propulsion 27 | 2 2 . 5 . 2 . 4 5 1 6 Treads . | . . . . . . . . . . . Leg 22 | 2 . . 3 . 2 . 4 5 1 5 Wheel 4 | . 2 . 2 . . . . . . . Hover 1 | . . . . . . . . . . 1 Flight . | . . . . . . . . . . . Utility 17 | 2 1 . 1 1 1 . 3 5 . 3 Device 10 | 1 . . 1 1 . . 3 1 . 3 Storage 2 | 1 1 . . . . . . . . . Processor 4 | . . . . . 1 . . 3 . . Hackware . | . . . . . . . . . . . Protection 1 | . . . . . . . . 1 . . Artifact . | . . . . . . . . . . . Weapon 15 | 2 3 . 2 . 1 1 2 . . 4 Energy Gun 1 | . . . . . 1 . . . . . Energy Cannon 3 | . 2 . 1 . . . . . . . Ballistic Gun 7 | 2 . . 1 . . . 1 . . 3 Ballistic Cannon 1 | . . . . . . . . . . 1 Launcher 1 | . . . . . . 1 . . . . Special Weapon 1 | . 1 . . . . . . . . . Impact Weapon . | . . . . . . . . . . . Slashing Weapon . | . . . . . . . . . . . Piercing Weapon . | . . . . . . . . . . . Special Melee Weapon 1 | . . . . . . . 1 . . . Unidentified Prototypes 2 | . . . . . . . . . 1 1 Parts Lost 23 | . . . 3 1 . 1 1 . . 17 Power 4 | . . . . . . 1 . . . 3 Propulsion 8 | . . . 2 . . . . . . 6 Utility 6 | . . . . . . . 1 . . 5 Weapon 5 | . . . 1 1 . . . . . 3 Highest Loss Streak 7 | . . . 2 1 . 1 1 . . 7 To Critical Strikes . | . . . . . . . . . . . Average Backups 18 | 3 8 15 17 19 19 19 19 19 20 17 Power 1 | . 1 1 1 1 1 . . 2 3 2 Propulsion 4 | 1 2 4 4 6 5 5 3 3 4 4 Utility 5 | . 2 5 5 6 6 6 6 4 5 4 Weapon 6 | . 1 4 4 5 6 6 8 9 7 6 Tool/Special . | . . . . . . . . . . . Unused Backups 25 | . . . 1 . . . 1 8 2 13 Power 3 | . . . . . . . 1 1 . 1 Propulsion 7 | . . . . . . . . . 1 6 Utility 8 | . . . 1 . . . . 3 . 4 Weapon 7 | . . . . . . . . 4 1 2 Tool/Special . | . . . . . . . . . . . Average Slot Usage (%) 90 | . 100 100 97 99 90 88 87 91 92 85 Engine 7 | . 14 14 11 11 11 10 7 3 1 6 Core 1 | . . . . . . . 1 3 . . Leg 32 | . 4 . 16 33 33 33 35 37 38 33 Wheel 2 | . 23 28 15 . . . . . . . Device 15 | . 14 14 21 22 14 11 21 15 15 13 Storage 8 | . 14 14 11 11 11 11 9 7 7 6 Processor 8 | . . . . . 7 11 3 8 15 13 Protection 1 | . . . . . . . . 4 . . Energy Gun 5 | . . . . . 8 9 8 6 7 2 Energy Cannon 2 | . 3 28 13 13 4 1 . . . . Ballistic Gun 3 | . 22 . 8 8 . . . . . 6 Peak Build Rating 61 | 7 8 8 15 15 29 29 37 54 61 60 Average Rating 36 | 6 7 8 13 14 26 27 33 50 57 47 On Entrance 22 | . 7 8 8 15 14 29 16 32 54 60 Avg Prop Armor Cover (%) . | . . . . . . . . . . . Naked Turns 131 | . . . . . . . . . . 131 Heaviest Build 74 | 13 52 52 55 55 57 56 60 74 66 64 Greatest Support 85 | 20 26 26 36 30 30 30 40 75 85 85 Greatest Overweight (x) 5 | . 1 1 5 1 1 1 2 1 . 1 Average Overweight (x) . | . . 1 1 1 1 1 1 . . . Largest Inventory Capacity 20 | 8 20 20 20 20 20 20 20 20 20 20 Average Capacity 19 | 7 18 20 20 20 20 20 20 20 20 18 Most Carried 20 | 5 15 15 20 20 20 20 20 20 20 20 Average Carried 18 | 3 8 15 17 19 19 19 19 19 19 17 Final Capacity 20 | 8 20 20 20 20 20 20 20 20 20 5 Final Carried 20 | 5 15 15 20 19 20 19 18 20 20 4 Class Distribution -------------------- 60% | Skirmisher 23% | Mutant 14% | Scavenger-Mutant Dominant Class ---------------- Mutant | -10/Materials Mutant | -10/Mines Scavenger-Mutant | -9/Materials Scavenger-Mutant | -9/Mines Mutant | -9/Exiles Skirmisher | -8/Mines Skirmisher | -8/Materials Skirmisher | -7/Factory Skirmisher | -7/Waste Skirmisher | -7/Factory Resources | -11 -10 -10 -9 -9 -9 -8 -8 -7 -7 -7 ----------- Run | Yrd Mat Min Mat Min Exi Min Mat Fac Was Fac Matter Collected 1822 | 265 24 . 414 66 . 22 233 226 50 522 Remotely . | . . . . . . . . . . . Salvage Created 2528 | 44 24 . 841 100 . 34 679 479 . 327 Parts 152 | 6 4 . 53 11 . 10 26 23 . 19 Haulers Intercepted 2 | . . . . . . . . . . 2 Recyclers Shooed . | . . . . . . . . . . . Parts Field Recycled . | . . . . . . . . . . . Retrieved Matter . | . . . . . . . . . . . Parts Self-Destructed . | . . . . . . . . . . . Prevented . | . . . . . . . . . . . Parts Restored . | . . . . . . . . . . . Kills | -11 -10 -10 -9 -9 -9 -8 -8 -7 -7 -7 ------- Run | Yrd Mat Min Mat Min Exi Min Mat Fac Was Fac Combat Hostiles Destroyed 56 | . . . 18 6 . 4 12 7 . 9 Guns 37 | . . . 7 2 . . 12 7 . 9 Cannons 16 | . . . 10 4 . 2 . . . . AOE 2 | . . . . . . 2 . . . . Classes Destroyed 12 | 1 1 . 5 1 . . 2 1 . 1 Worker 3 | . . . 1 . . . . . . 2 Builder 3 | . 1 . . . . 1 . 1 . . Tunneler 2 | 2 . . . . . . . . . . Hauler 2 | . . . . . . . . . . 2 Operator 1 | . . . 1 . . . . . . . Watcher 10 | . . . . . . . 2 6 . 2 Swarmer 16 | . . . . 6 . 4 . 3 . 3 Grunt 26 | . . . 13 . . . 9 2 . 2 Brawler 1 | . . . . . . . 1 . . . Duelist 2 | . . . 1 . . . . . . 1 Sentry 6 | . . . 4 . . . 2 . . . Programmer 5 | . . . . . . . . 2 . 3 Best Kill Streak 8 | 1 1 . 8 3 . 5 8 3 . 6 Combat Bots Only 7 | . . . 7 3 . 4 7 3 . 4 Max Kills in Single Turn 3 | 1 1 . 2 1 . 3 1 1 . 2 Gunslinging . | . . . . . . . . . . . Exploded 2 | . . . . . . 2 . . . . Melee . | . . . . . . . . . . . Uniques/NPCs Destroyed . | . . . . . . . . . . . Combat | -11 -10 -10 -9 -9 -9 -8 -8 -7 -7 -7 -------- Run | Yrd Mat Min Mat Min Exi Min Mat Fac Was Fac Hostile Shots Fired 363 | . . . 59 34 . 21 33 10 . 206 Missed 106 | . . . 15 4 . 8 10 5 . 64 Hits 257 | . . . 44 30 . 13 23 5 . 142 Melee 13 | . . . . . . . . . . 13 Projectile 244 | . . . 44 30 . 13 23 5 . 129 Critical Strikes 9 | . . . . 1 . . 3 . . 5 Part Disruptions 1 | . . . . . . . . . . 1 Damage Taken 4009 | . . . 558 253 . 136 355 72 . 2635 Core 959 | . . . 96 55 . 33 66 . . 709 Absorbed by Shields . | . . . . . . . . . . . Core Remaining (%) 85 | 100 . 100 . . . 54 88 . . . Volleys Fired 134 | 18 6 . 40 16 . 5 3 1 . 45 Largest 2 | 2 2 . 2 2 . 2 1 1 . 2 Hottest 120 | 40 120 . 120 120 . 90 100 100 . 68 Shots Fired 367 | 36 9 . 80 29 . 8 73 38 . 94 Gun 267 | 36 4 . 36 7 . . 70 37 . 77 Cannon 90 | . 2 . 44 22 . 5 . . . 17 Launcher 3 | . . . . . . 3 . . . . Special 7 | . 3 . . . . . 3 1 . . Kinetic 170 | 36 4 . 36 7 . . . . . 87 Thermal 194 | . 5 . 44 22 . 5 73 38 . 7 Explosive 3 | . . . . . . 3 . . . . Electromagnetic . | . . . . . . . . . . . Robot Hit Streak 20 | 8 3 . 20 5 . 2 11 13 . 14 Robot Miss Streak 6 | 3 1 . 3 5 . 1 5 2 . 6 Penetration Max . | . . . . . . . . . . . Secondary Targets . | . . . . . . . . . . . Autonomous 115 | . . . . . . . 70 37 . 8 Shots Hit Robots 254 | 23 4 . 60 11 . 2 51 29 . 74 Core Hits 153 | 5 1 . 28 6 . 4 23 14 . 72 Critical Kills 1 | . . . 1 . . . . . . . Critical Parts Destroyed 1 | . . . . . . . . . . 1 Critical Strikes 2 | . . . 1 . . . . . . 1 Meltdown 1 | . . . 1 . . . . . . . Destroy 1 | . . . . . . . . . . 1 Melee Attacks . | . . . . . . . . . . . Impact . | . . . . . . . . . . . Slashing . | . . . . . . . . . . . Piercing . | . . . . . . . . . . . Sneak Attacks . | . . . . . . . . . . . Combat Hostiles . | . . . . . . . . . . . Follow-up Attacks . | . . . . . . . . . . . Damage Inflicted 5466 | 198 43 . 1024 192 . 199 1431 808 . 1571 Guns 4271 | 198 25 . 413 37 . . 1409 801 . 1388 Cannons 994 | . 18 . 611 155 . 34 . . . 176 Explosions 187 | . . . . . . 165 22 . . . Melee . | . . . . . . . . . . . Ramming 14 | . . . . . . . . 7 . 7 Kinetic 2179 | 198 25 . 413 37 . . . . . 1506 Thermal 3086 | . 18 . 611 155 . 34 1409 801 . 58 Explosive 187 | . . . . . . 165 22 . . . Electromagnetic . | . . . . . . . . . . . Impact . | . . . . . . . . . . . Slashing . | . . . . . . . . . . . Piercing . | . . . . . . . . . . . Highest Corruption 9 | . . . . . . . . 2 2 9 Average Corruption 4 | . . . . . . . . 2 2 5 Corruption Purged 5 | . . . . . . . . . . 5 Corruption Blocked . | . . . . . . . . . . . Effects 93 | . . . . . . . . 12 5 76 Message Errors 24 | . . . . . . . . 7 1 16 Matter Fused 22 | . . . . . . . . 2 2 18 Heat Flow Errors 16 | . . . . . . . . . 1 15 Energy Discharges 9 | . . . . . . . . 2 . 7 Parts Rejected 1 | . . . . . . . . . . 1 Data Loss (minor) 8 | . . . . . . . . . 1 7 Data Loss (major) 7 | . . . . . . . . . . 7 Misfires 2 | . . . . . . . . . . 2 Alerts 3 | . . . . . . . . 1 . 2 Weapon Failures 1 | . . . . . . . . . . 1 Overload Shots . | . . . . . . . . . . . Overflow Damage 25 | . . . . . . 8 . . . 17 Projectiles 17 | . . . . . . . . . . 17 Explosions 8 | . . . . . . 8 . . . . Melee . | . . . . . . . . . . . Knockbacks 3 | . . . . . . . . . . 3 Impact . | . . . . . . . . . . . Kinetic 3 | . . . . . . . . . . 3 Secondary . | . . . . . . . . . . . Self-Inflicted Damage 38 | . . . . . . 35 . . . 3 Shots 1 | . . . . . . 1 . . . . Rammed 3 | . . . . . . . . . . 3 Targets Rammed 4 | . . . . . . . . 1 . 3 Kicked 1 | . . . . . . . . 1 . . Crushed . | . . . . . . . . . . . Highest Temperature 379 | . 60 . 148 379 . 34 . . 256 193 Average Temperature 73 | . 19 . 49 136 . 13 . . 137 84 Received Heat Transfer 927 | . . . 285 . . . 243 . . 399 Effects 2 | . . . . 2 . . . . . . Interference 1 | . . . . 1 . . . . . . Matter Decay 1 | . . . . 1 . . . . . . Siege Activations . | . . . . . . . . . . . Martial Activations . | . . . . . . . . . . . Shielding Activations . | . . . . . . . . . . . Robots Disrupted . | . . . . . . . . . . . Combat Hostiles . | . . . . . . . . . . . Robots Corrupted . | . . . . . . . . . . . Combat Hostiles . | . . . . . . . . . . . Parts Fried . | . . . . . . . . . . . Impact Corruptions . | . . . . . . . . . . . Robots Melted 1 | . . . 1 . . . . . . . Combat Hostiles 1 | . . . 1 . . . . . . . Parts Melted 8 | . . . 5 . . . 2 1 . . Heat Transferred 4588 | . 37 . 1295 333 . 74 1813 962 . 74 Parts Sabotaged . | . . . . . . . . . . . Parts Stolen . | . . . . . . . . . . . Parts Stripped . | . . . . . . . . . . . Power Chain Reactions . | . . . . . . . . . . . Alert | -11 -10 -10 -9 -9 -9 -8 -8 -7 -7 -7 ------- Run | Yrd Mat Min Mat Min Exi Min Mat Fac Was Fac Maximum Alert Level 1 | . . . 1 . . . 1 . . . Low Security (%) 94 | 100 100 100 51 100 . 100 85 100 100 100 Level 1 5 | . . . 48 . . . 14 . . . Level 2 . | . . . . . . . . . . . Level 3 . | . . . . . . . . . . . Level 4 . | . . . . . . . . . . . Level 5 . | . . . . . . . . . . . High Security . | . . . . . . . . . . . Max Security . | . . . . . . . . . . . Peak Influence 269 | 5 11 10 259 69 . 107 269 119 6 163 Initial 119 | . . . 3 69 . . 35 119 6 . Average 29 | . . . 147 21 . 8 51 16 . 19 Influence Increases 1994 | 10 19 10 514 140 . 125 441 236 . 499 Destroy 0b10 Robot/C 1120 | . . . 360 120 . 80 240 140 . 180 Destroy 0b10 Robot/NC 105 | 10 5 . 10 . . 5 10 35 . 30 Destroy Leader 264 | . . . 100 20 . 10 54 42 . 38 Successful Hack 69 | . 11 10 8 . . . 8 . . 32 Disable Machine 45 | . . . . . . . 15 15 . 15 Destroy Structure 91 | . 3 . 6 . . 30 39 4 . 9 Partial Spotted 15 | . . . . . . . . . . 15 Lose Combat Pursuer 285 | . . . 30 . . . 75 . . 180 Influence Decreases 1841 | 10 19 . 346 318 . 34 270 480 18 346 Entered New Map 327 | . . . 7 109 . . 56 143 12 . Time Decay 1309 | 10 19 . 309 199 . 24 204 337 6 201 Lost Part 205 | . . . 30 10 . 10 10 . . 145 Squads Dispatched 27 | . . . 3 . . . 4 9 . 11 Investigation 10 | . . . 2 . . . 2 4 . 2 Extermination 9 | . . . . . . . . 4 . 5 Reinforcement 8 | . . . 1 . . . 2 1 . 4 Assault . | . . . . . . . . . . . Garrison . | . . . . . . . . . . . Intercept . | . . . . . . . . . . . Searches Triggered . | . . . . . . . . . . . Construction Impeded . | . . . . . . . . . . . Haulers Reinforced 2 | . . . . . . . . 1 . 1 Active Scanning Responses . | . . . . . . . . . . . Cargo Convoy Interrupts . | . . . . . . . . . . . Stealth | -11 -10 -10 -9 -9 -9 -8 -8 -7 -7 -7 --------- Run | Yrd Mat Min Mat Min Exi Min Mat Fac Was Fac Distress Signals 5 | . . . 1 . . . 3 . . 1 Communications Jammed . | . . . . . . . . . . . Distress Signals . | . . . . . . . . . . . Times Spotted 116 | . 3 . 21 7 . 8 23 17 . 37 Peak Tracking Total 8 | . 2 . 5 4 . 4 7 3 . 8 Tactical Retreats 15 | . . . 2 . . . 3 . . 10 ECM-based Alert Blocks 9 | . . . . . . . . . . 9 Traps | -11 -10 -10 -9 -9 -9 -8 -8 -7 -7 -7 ------- Run | Yrd Mat Min Mat Min Exi Min Mat Fac Was Fac Traps Triggered 16 | . . . 1 . . . 4 5 . 6 Indirectly . | . . . . . . . . . . . Trap Hack Attempts . | . . . . . . . . . . . Triggered . | . . . . . . . . . . . Disarmed . | . . . . . . . . . . . Reprogrammed . | . . . . . . . . . . . Reused . | . . . . . . . . . . . Traps Extracted . | . . . . . . . . . . . Installed . | . . . . . . . . . . . Triggered . | . . . . . . . . . . . Machines | -11 -10 -10 -9 -9 -9 -8 -8 -7 -7 -7 ---------- Run | Yrd Mat Min Mat Min Exi Min Mat Fac Was Fac Machines Disabled 3 | . . . . . . . 1 1 . 1 Max in Single Turn 1 | . . . . . . . 1 1 . 1 Garrison Access 1 | . . . . . . . . . . 1 Machines Repaired . | . . . . . . . . . . . Machines Dismantled . | . . . . . . . . . . . Machines Sabotaged . | . . . . . . . . . . . Overloaded Fab Kills . | . . . . . . . . . . . Hacking | -11 -10 -10 -9 -9 -9 -8 -8 -7 -7 -7 --------- Run | Yrd Mat Min Mat Min Exi Min Mat Fac Was Fac Machines Accessed 39 | . 3 1 4 . 5 . 4 12 . 10 Terminals 16 | . 2 1 2 . . . 2 5 . 4 Fabricators 4 | . . . . . . . . 3 . 1 Repair Stations 1 | . . . . . . . . . . 1 Recycling Units 5 | . 1 . 1 . . . . 1 . 2 Scanalyzers 4 | . . . 1 . . . 2 1 . . Garrison Access 4 | . . . . . . . . 2 . 2 Total Hacks 116 | . 10 3 15 . 31 . 13 23 . 21 Successful 66 | . 4 2 10 . 31 . 5 8 . 6 Failed 47 | . 6 1 4 . . . 7 14 . 15 Catastrophic 18 | . . . 2 . . . 2 6 . 8 Database Lockouts 3 | . . . 1 . . . 1 1 . . Manual 45 | . 10 2 6 . 1 . 4 11 . 11 Terminals 44 | . 8 3 7 . . . 7 9 . 10 Fabricators 5 | . . . . . . . . 4 . 1 Repair Stations 3 | . . . . . . . . . . 3 Recycling Units 10 | . 2 . 3 . . . . 1 . 4 Scanalyzers 17 | . . . 5 . . . 6 6 . . Garrison Access 6 | . . . . . . . . 3 . 3 Terminal Hacks 38 | . 1 2 2 . 31 . . . . 2 Record 32 | . . 1 . . 30 . . . . 1 Branch Access Points 2 | . . 1 . . . . . . . 1 Hauler Manifests 1 | . 1 . . . . . . . . . Registered Components 1 | . . . 1 . . . . . . . Zone Layout 1 | . . . 1 . . . . . . . Proto ID Catalog 1 | . . . . . 1 . . . . . Fabricator Hacks 4 | . . . . . . . . 3 . 1 Network Status 1 | . . . . . . . . 1 . . Load Schematic 3 | . . . . . . . . 2 . 1 Repair Station Hacks 1 | . . . . . . . . . . 1 Scan Component 1 | . . . . . . . . . . 1 Recycling Unit Hacks 4 | . . . 2 . . . . 1 . 1 Report Inventory 3 | . . . 1 . . . . 1 . 1 Retrieve Components 1 | . . . 1 . . . . . . . Scanalyzer 12 | . . . 4 . . . 4 4 . . Insert Component 2 | . . . 1 . . . 1 . . . Analyze 3 | . . . 1 . . . 2 . . . Retrieve Study 7 | . . . 2 . . . 1 4 . . Garrison Access Hacks 1 | . . . . . . . . . . 1 Seal Access 1 | . . . . . . . . . . 1 Unauthorized Hacks 6 | . 3 . 2 . . . 1 . . . Terminals 4 | . 2 . 1 . . . 1 . . . Assimilate 4 | . 2 . 1 . . . 1 . . . Fabricators . | . . . . . . . . . . . Repair Stations . | . . . . . . . . . . . Recycling Units 2 | . 1 . 1 . . . . . . . Monitor 2 | . 1 . 1 . . . . . . . Scanalyzers . | . . . . . . . . . . . Garrison Access . | . . . . . . . . . . . Data Cores Recovered . | . . . . . . . . . . . Used . | . . . . . . . . . . . Hacking Detections 29 | . 3 1 4 . . . 3 9 . 9 Full Trace Events 7 | . 1 . 1 . . . 1 2 . 2 Feedback Events . | . . . . . . . . . . . Feedback Blocked . | . . . . . . . . . . . Robot Schematics Acquired . | . . . . . . . . . . . Robots Built . | . . . . . . . . . . . Authchips . | . . . . . . . . . . . Time . | . . . . . . . . . . . Total Robot Build Rating . | . . . . . . . . . . . Part Schematics Acquired 2 | . . . 1 . . . 1 . . . Parts Built . | . . . . . . . . . . . Authchips . | . . . . . . . . . . . Time . | . . . . . . . . . . . Total Part Build Rating . | . . . . . . . . . . . Part Studies Acquired 7 | . . . 2 . . . 1 4 . . Parts Repaired . | . . . . . . . . . . . Time . | . . . . . . . . . . . Parts Recycled . | . . . . . . . . . . . Recycled Matter . | . . . . . . . . . . . Retrieved Matter . | . . . . . . . . . . . Retrieved Components . | . . . . . . . . . . . Parts Scanalyzed 2 | . . . 1 . . . 1 . . . Part Schematics Acquired 2 | . . . 1 . . . 1 . . . Parts Damaged . | . . . . . . . . . . . Bothacking | -11 -10 -10 -9 -9 -9 -8 -8 -7 -7 -7 ------------ Run | Yrd Mat Min Mat Min Exi Min Mat Fac Was Fac Used RIF Installer . | . . . . . . . . . . . Robots Hacked . | . . . . . . . . . . . Non-combat . | . . . . . . . . . . . Combat . | . . . . . . . . . . . Robot Hacks Applied . | . . . . . . . . . . . Relay Couplers Released . | . . . . . . . . . . . Fabnet Peak Effective % . | . . . . . . . . . . . Robots Rewired . | . . . . . . . . . . . Allies Hacked . | . . . . . . . . . . . Hacks Repelled . | . . . . . . . . . . . Allies | -11 -10 -10 -9 -9 -9 -8 -8 -7 -7 -7 -------- Run | Yrd Mat Min Mat Min Exi Min Mat Fac Was Fac Total Allies . | . . . . . . . . . . . Largest Group . | . . . . . . . . . . . Highest-Rated Group . | . . . . . . . . . . . Highest-Rated Ally . | . . . . . . . . . . . Total Orders . | . . . . . . . . . . . Ally Attacks . | . . . . . . . . . . . Total Damage . | . . . . . . . . . . . Kills . | . . . . . . . . . . . Allies Corrupted . | . . . . . . . . . . . Allies Melted . | . . . . . . . . . . . Intel | -11 -10 -10 -9 -9 -9 -8 -8 -7 -7 -7 ------- Run | Yrd Mat Min Mat Min Exi Min Mat Fac Was Fac Active Infowar (turns) 10652 | 106 336 50 812 663 1754 500 693 2874 326 2538 Terrain 9382 | . . . 754 511 1196 500 693 2874 326 2528 Seismic 2527 | 106 336 50 812 663 560 . . . . . ECM 1424 | . . . . . . . . . . 1424 Robot Analysis Total . | . . . . . . . . . . . Derelict Logs Recovered 1 | . . . . 1 . . . . . . Drone Launches . | . . . . . . . . . . . Drone Recoveries . | . . . . . . . . . . . Exploration | -11 -10 -10 -9 -9 -9 -8 -8 -7 -7 -7 ------------- Run | Yrd Mat Min Mat Min Exi Min Mat Fac Was Fac Turns Passed 11093 | 183 336 50 812 663 1754 500 693 2874 326 2902 Spaces Moved 6014 | 104 279 48 396 309 513 45 324 1636 301 2059 Core 276 | 5 . . . . . . . . . 271 Treads . | . . . . . . . . . . . Legs 4879 | 99 39 . 179 309 513 45 324 1636 301 1434 Wheels 505 | . 240 48 217 . . . . . . . Hover 354 | . . . . . . . . . . 354 Flight . | . . . . . . . . . . . Fastest Speed 50 | 50 90 105 95 190 190 190 175 105 105 50 Average Speed 123 | 116 106 105 143 190 190 190 178 121 105 90 Slowest Speed 470 | 120 120 105 470 190 190 190 245 181 108 108 Overloaded Moves . | . . . . . . . . . . . Propulsion Burnouts . | . . . . . . . . . . . Robots Hopped . | . . . . . . . . . . . Potential Cave-ins . | . . . . . . . . . . . Cave-ins Triggered . | . . . . . . . . . . . Exploration Rate (%) 42 | 6 36 15 36 64 77 10 35 32 96 57 Regions Visited 10 Branch Regions 4 Pre-discovered Areas 1 | . . . . . 1 . . . . . Known Exits Taken . | . . . . . . . . . . . Unknown Exits Taken 8 | 1 1 1 1 1 1 1 1 . . . Scrap Searched . | . . . . . . . . . . . Spaces Dug 7 | . 3 . . . . . 3 . . 1 Terrain Destroyed 109 | . 3 . . . . 39 55 4 . 8 Melee . | . . . . . . . . . . . Projectile 36 | . 3 . . . . . 21 4 . 8 AOE 73 | . . . . . . 39 34 . . . Terrain Rammed . | . . . . . . . . . . . Walls Destroyed . | . . . . . . . . . . . Machines Disabled . | . . . . . . . . . . . Actions | -11 -10 -10 -9 -9 -9 -8 -8 -7 -7 -7 --------- Run | Yrd Mat Min Mat Min Exi Min Mat Fac Was Fac Total 9426 | 134 299 47 559 356 1291 452 437 2530 313 3008 Wait 3048 | . . . 99 30 765 398 59 831 . 866 Move 6005 | 103 278 47 395 308 512 44 323 1636 300 2059 Hop . | . . . . . . . . . . . Pick Up 77 | 6 9 . 10 . 3 1 14 21 3 10 Fast Attach 23 | 6 . . 3 . . . 6 3 2 3 Attach 38 | 1 . . 4 1 1 3 10 3 . 15 Detach 8 | . . . 2 . . . 4 1 . 1 Swap 31 | . 6 . 2 1 6 . 3 9 1 3 Drop 56 | . . . 4 . 3 1 15 24 6 3 Fire 134 | 18 6 . 40 16 . 5 3 1 . 45 Melee . | . . . . . . . . . . . Ram 3 | . . . . . . . . . . 3 Kick 1 | . . . . . . . . 1 . . Crush . | . . . . . . . . . . . Escape Stasis . | . . . . . . . . . . . Rewire 2 | . . . . . 1 . . . 1 . Trap . | . . . . . . . . . . . Miscellaneous . | . . . . . . . . . . . Route ------- -11/Scrapyard -10/Materials -10/Mines -9/Materials -9/Mines (discovered 3 exits: *Mat x2 / *Exi) -9/Exiles (discovered 2 exits: [*Min x2]) -8/Mines -8/Materials -7/Factory -7/Waste -7/Factory (discovered 8 exits: *Fac x4 / Sto x2 / Low x2) History --------- Turn | Location | Event 6 | -11/Scrapyard | Discovered new exit (range 16) 184 | -11/Scrapyard | Entered Materials 315 | -10/Materials | Build established: Mutant 430 | -10/Materials | Discovered new exit (range 7) 520 | -10/Materials | Entered Mines 527 | -10/Mines | Discovered new exit (range 8) 570 | -10/Mines | Entered Materials 570 | -9/Materials | Evolved 2 slots: Propulsion x1, Utility x1 825 | -9/Materials | Central database locked down 973 | -9/Materials | Destroyed 7 combat bots 1263 | -9/Materials | Build established: Scavenger-Mutant 1357 | -9/Materials | Discovered new exit (range 14) 1382 | -9/Materials | Entered Mines 1668 | -9/Mines | Discovered new exit (range 5) 1811 | -9/Mines | Discovered new exit (range 4) 1990 | -9/Mines | Deemed a non-threat by the Exiles lab entrance 2005 | -9/Mines | Learned Materials stockpile data 2036 | -9/Mines | Discovered new exit (range 5) 2045 | -9/Mines | Entered Exiles 2076 | -9/Exiles | Discovered new exit (range 14) 2112 | -9/Exiles | Met 8R-AWN 2135 | -9/Exiles | Met EX-HEX 2221 | -9/Exiles | Met EX-BIN 2255 | -9/Exiles | Aligned with FarCom system 2257 | -9/Exiles | Given EX-Vault access code 2341 | -9/Exiles | Opened EX-Vault 2365 | -9/Exiles | Found AWS/Thermal 2409 | -9/Exiles | Warned to stay clear of 0b10 Research branches 2472 | -9/Exiles | Met EX-DEC 2482 | -9/Exiles | Learned location of Zion (-7) 2589 | -9/Exiles | Visited The Gauntlet 2664 | -9/Exiles | Build established: Mutant 3214 | -9/Exiles | Discovered new exit (range 14) 3799 | -9/Exiles | Left Exiles lab with AWS/Thermal 3799 | -9/Exiles | Entered Mines 3923 | -8/Mines | Discovered new exit (range 14) 4089 | -8/Mines | Build established: Skirmisher 4299 | -8/Mines | Entered Materials 4299 | -8/Materials | Evolved 2 slots: Propulsion x1, Utility x1 4469 | -8/Materials | Central database locked down 4915 | -8/Materials | Destroyed 7 combat bots 4984 | -8/Materials | Discovered new exit (range 5) 4992 | -8/Materials | Entered Factory 4992 | -7/Factory | Evolved 2 slots: Propulsion x1, Utility x1 5233 | -7/Factory | Discovered new exit (range 10) 5254 | -7/Factory | Identified exit to Storage 6934 | -7/Factory | Allied Derelicts emerged from ambush trap array 7064 | -7/Factory | Central database locked down 7866 | -7/Factory | Sucked down chute 7866 | -7/Factory | Entered Waste 7866 | -7/Waste | The area was eerily silent 8149 | -7/Waste | Discovered new exit (range 13) 8181 | -7/Waste | Identified exit to Factory 8192 | -7/Waste | Entered Factory 9313 | -7/Factory | AWS/Thermal suddenly broke down 9566 | -7/Factory | Discovered new exit (range 16) 9583 | -7/Factory | Identified exit to Factory 9602 | -7/Factory | Discovered exit to Factory (range 8) 9853 | -7/Factory | Allied Derelicts emerged from ambush trap array 10118 | -7/Factory | Lost 3 allies 10459 | -7/Factory | Lost 7 parts (1p4n1u1w) 10732 | -7/Factory | Discovered exit to Factory (range 16) 10746 | -7/Factory | Released all parts (8) 10771 | -7/Factory | Lost 5 parts (1p1n3u) 10781 | -7/Factory | Core integrity fell below 50% 10957 | -7/Factory | Core integrity fell below 20% 10971 | -7/Factory | Discovered exit to Factory (range 8) 10989 | -7/Factory | Identified exit to Lower Caves 11025 | -7/Factory | Build established: Mutant 11094 | -7/Factory | Destroyed by P-60 Hacker with Shock Rifle Last Messages --------------- >>Access(Branch) Found 4 branch access points: (174,70) Storage (55,56) Storage (146,113) Lower Caves (63,63) Lower Caves Map updated. 10989_ ALERT: Suspicious activity at Terminal F001. Dispatching Investigation squad. 10991_ K-01 Serf cleans the Terminal. 10992_ ALERT: Hostiles spotted, dispatching reinforcements to Terminal F015. 10992_ K-01 Serf cleans the Fusion Modulator. 11041_ System corrupted: Energy discharge (-36). 11065_ K-01 Serf cleans the Terminal. 11067_ System corrupted: Energy discharge (-57). 11068_ W-25 Informer sends out distress signal. 11085_ System corrupted: Heat flow error (+152). 11087_ Lgt. Nuclear Core destroyed. 11091_ Cld. Airjet destroyed. Map ----- +----------------------------------------------------+ | ???????####+##### ### # """"????????????? | | ???????? ## #?## ##""" """"????????????? | | ?????? #### ###??# #??Y ???????????? | | ??# """"" #??# #????# #??"" ??????????? | | # """"" #### #????# #??? * ?????????? | | # """ # #????# #???#########?????????? | | # # ####????# #??????################ | | ! # # #???#####+######## | | # # #???# [# | | #"" # #???# # "" | | #"T # #???# """ """ #""" """" | | #?? ! # #???# """ """ #"" """" | | #???? # #???# """ """ #""F" """" | | #########+####+# ###?#! #"""" """" | | #?# """ """ # """ """" | | #?# """ """ # """" | | + """ """ # | | ### # | | #?# # | | ###+########## #?# ! # ######### | | ?????????????# ####/#######+### #???????# | | ?????????????# p r ####?#### | | ?????????????# # # | | ?????????????# # """ # | | ?????????????# # """ # | | ?????????????# @ # """ # | | ?????????????####+#############+######### # | | ????????????????? ??????# #?# """ # | | ????????????????? ??????# ""G"" #?# """ # | | ?????????????????"???????# " " ### """ # | | ?????????????????????????# " " Y ## + | | ?????????????????????????# ###g # | | ?????????????????????????# """ +g/ # | | ?????????????????????????# """"" ### ## | | ?????????????????????????# """"" #?# !! #? | | ?????????????????????????# #?# !] #? | | ?????????????????????????# ]]] #?# #? | | ?????????????????????????# ]] #?# #? | | ?????????????????????????# ]] #?# #? | | ?????????????????????????##############?#########? | | ?????????????????????????????????????????????????? | | ?????????????????????????????????????????????????? | | ?????????????????????????????????????????????????? | | ?????????????????????????????????????????????????? | | ?????????????????????????????????????????????????? | | ?????????????????????????????????????????????????? | | ?????????????????????????????????????????????????? | | ?????????????????????????????????????????????????? | | ?????????????????????????????????????????????????? | | ?????????????????????????????????????????????????? | +----------------------------------------------------+ Best States ------------- Heat Dissipation 48 Energy Generation 21 Energy Capacity 500 Matter Stores 300 Matter Capacity 300 Sight Range 16 Terrain Scan Range 16 Terrain Scan Density 110 ECM Strength 1 Armor Coverage 225 Evasion (%) 55 Item Schematics ----------------- Signal Interpreter | -9/Materials | Scanalyzed Flak Gun | -8/Materials | Scanalyzed Robot Schematics ------------------ None Fabricated ------------ Nothing Repaired ---------- Nothing Studied --------- Hvy. Assault Rifle | -9/Materials | Hacked Wheel | -9/Materials | Hacked Aluminum Leg | -8/Materials | Hacked Carbon-fiber Leg | -7/Factory | Hacked Flak Gun | -7/Factory | Hacked Mining Laser | -7/Factory | Hacked Imp. Deuterium Engine | -7/Factory | Hacked Alien Tech Used ----------------- None Achievements -------------- Ew, Corruption Challenges ------------ None Game ------ Seed MultitargetingStealthHammer Manual? 0 Play Time 01:35:47 Cumulative 23.5 hours Start 2026.01.10 @ 19:12:43 End 2026.01.13 @ 16:10:55 Sessions 2 Manual Loads 0 Difficulty Rogue Special Mode None Game No. 25 Rogue 25 Adventurer 0 Explorer 0 Win Type - Total 0 Types 0/0/0/0/0/0/0/0/0/0 Lore% 21 Gallery% 25 Achievement% 30 Wizard Run 0 Options --------- Layout 1 ASCII 0 Keyboard 1 Movement Numpad Keybinds 0 Fullscreen 1 Font 24/Smallcaps Map View 50x35 Zoom Use 0% Tactical HUD 1 Map Filters NONE Filters NONE Steam 1 RUN: 3d53d47c-5a04-413c-964f-97938f3a77da